fUST/lending_fUST_20250729
["ID","MTS","AMOUNT","RATE_DAILY","PERIOD"]
[375870170,1753767039010,-460.0,0.00019178,2]
[375870171,1753767039020,-460.0,0.00019178,2]
[375870172,1753767039030,-460.0,0.00019178,2]
[375870173,1753767039039,-460.0,0.00019178,2]
[375870174,1753767039049,-460.0,0.00019178,2]
[375870175,1753767039065,-461.48,0.00019178,2]
[375870176,1753767039077,-460.0,0.00019178,2]
[375870177,1753767039087,-460.0,0.00019178,2]
[375870178,1753767039097,-460.0,0.00019178,2]
[375870179,1753767039107,-506.07,0.00019178,2]
[375870180,1753767039117,-460.0,0.00019178,2]
[375870181,1753767039128,-460.0,0.00019178,2]
[375870182,1753767039138,-460.0,0.00019178,2]
[375870183,1753767039148,-460.0,0.00019178,2]
[375870184,1753767039159,-460.0,0.00019178,2]
[375870185,1753767039169,-648.28,0.00019178,2]
[375870186,1753767039179,-460.0,0.00019178,2]
[375870187,1753767039190,-160.0,0.00019178,2]
[375870188,1753767039200,-46699.66962619,0.00019178,2]
[375870189,1753767039210,-200.0,0.00019348,15]
[375870190,1753767039220,-200.0,0.00019348,15]
[375870191,1753767039230,-200.0,0.00019348,15]
[375870192,1753767039240,-200.0,0.00019348,15]
[375870193,1753767039250,-460.0,0.00019452,2]
[375870194,1753767039260,-460.0,0.00019452,2]
[375870195,1753767039270,-460.0,0.00019452,2]
[375870196,1753767039280,-460.0,0.00019452,2]
[375870197,1753767039290,-460.0,0.00019452,2]
[375870198,1753767039300,-460.0,0.00019452,2]
[375870199,1753767039310,-460.0,0.00019452,2]
[375870200,1753767039320,-275.51,0.00019452,2]
[375870201,1753767039330,-460.0,0.00019452,2]
[375870202,1753767039341,-460.0,0.00019452,2]
[375870203,1753767039351,-460.0,0.00019452,2]
[375870204,1753767039361,-460.0,0.00019452,2]
[375870205,1753767039371,-460.0,0.00019452,2]
[375870207,1753767039383,-191.22,0.00019452,2]
[375870210,1753767039393,-460.0,0.00019452,2]
[375870212,1753767039403,-460.0,0.00019452,2]
[375870213,1753767039413,-460.0,0.00019452,2]
[375870214,1753767039423,-460.0,0.00019452,2]
[375870215,1753767039432,-460.0,0.00019452,2]
[375870216,1753767039442,-460.0,0.00019452,2]
[375870217,1753767039452,-460.0,0.00019452,2]
[375870218,1753767039462,-460.0,0.00019452,2]
[375870219,1753767039472,-460.0,0.00019452,2]
[375870220,1753767039482,-460.0,0.00019452,2]
[375870221,1753767039494,-460.0,0.00019452,2]
[375870222,1753767039508,-768.98,0.00019452,2]
[375870223,1753767039518,-511.52,0.00019452,2]
[375870224,1753767039527,-460.0,0.00019452,2]
[375870225,1753767039537,-1134.56,0.00019452,2]
[375870226,1753767039547,-775.71,0.00019452,2]
[375870227,1753767039557,-460.0,0.00019452,2]
[375870228,1753767039567,-460.0,0.00019452,2]
[375870229,1753767039577,-460.0,0.00019452,2]
[375870230,1753767039587,-460.0,0.00019452,2]
[375870231,1753767039597,-460.0,0.00019452,2]
[375870232,1753767039607,-460.0,0.00019452,2]
[375870233,1753767039617,-460.0,0.00019452,2]
[375870234,1753767039627,-460.0,0.00019452,2]
[375870235,1753767039637,-520.82,0.00019452,2]
[375870236,1753767039647,-460.0,0.00019452,2]
[375870237,1753767039657,-460.0,0.00019452,2]
[375870238,1753767039666,-384.2,0.00019452,2]
[375870239,1753767039677,-460.0,0.00019452,2]
[375870241,1753767039689,-460.0,0.00019452,2]
[375870243,1753767039698,-460.0,0.00019452,2]
[375870245,1753767039708,-460.0,0.00019452,2]
[375870247,1753767039717,-460.0,0.00019452,2]
[375870249,1753767039727,-460.0,0.00019452,2]
[375870251,1753767039737,-460.0,0.00019452,2]
[375870253,1753767039746,-460.0,0.00019452,2]
[375870255,1753767039755,-461.48,0.00019452,2]
[375870257,1753767039765,-460.0,0.00019452,2]
[375870259,1753767039774,-506.07,0.00019452,2]
[375870261,1753767039784,-460.0,0.00019452,2]
[375870263,1753767039793,-460.0,0.00019452,2]
[375870265,1753767039802,-460.0,0.00019452,2]
[375870267,1753767039812,-648.28,0.00019452,2]
[375870269,1753767039821,-460.0,0.00019452,2]
[375870271,1753767039830,-501.55322601,0.00019473,2]
[375870273,1753767039840,-500.0,0.00019721,2]
[375870274,1753767039849,-444.38746128,0.00019721,2]
[375870276,1753767039859,-214.76712164,0.00019721,2]
[375870278,1753767039868,-677.96957574,0.00019721,2]
[375870280,1753767039879,-1000.0,0.00019721,2]
[375870282,1753767039888,-500.0,0.00019721,2]
[375870284,1753767039898,-500.0,0.00019721,2]
[375870286,1753767039908,-1000.0,0.00019721,2]
[375870288,1753767039918,-500.0,0.00019721,2]
[375870290,1753767039929,-1000.0,0.00019721,2]
[375870292,1753767039938,-1000.0,0.00019721,2]
[375870294,1753767039948,-460.0,0.00019726,2]
[375870296,1753767039958,-460.0,0.00019726,2]
[375870298,1753767039967,-460.0,0.00019726,2]
[375870300,1753767039977,-460.0,0.00019726,2]
[375870302,1753767039986,-460.0,0.00019726,2]
[375870304,1753767039995,-460.0,0.00019726,2]
[375870306,1753767040004,-460.0,0.00019726,2]
[375870308,1753767040014,-460.0,0.00019726,2]
[375870310,1753767040023,-452.58,0.00019726,2]
[375870312,1753767040032,-460.0,0.00019726,2]
[375870314,1753767040042,-460.0,0.00019726,2]
[375870316,1753767040051,-460.0,0.00019726,2]
[375870318,1753767040062,-460.0,0.00019726,2]
[375870320,1753767040072,-460.0,0.00019726,2]
[375870322,1753767040081,-460.0,0.00019726,2]
[375870323,1753767040091,-460.0,0.00019726,2]
[375870325,1753767040100,-460.0,0.00019726,2]
[375870327,1753767040110,-460.0,0.00019726,2]
[375870329,1753767040119,-460.0,0.00019726,2]
[375870331,1753767040129,-460.0,0.00019726,2]
[375870333,1753767040138,-460.0,0.00019726,2]
[375870335,1753767040148,-460.0,0.00019726,2]
[375870337,1753767040157,-768.98,0.00019726,2]
[375870339,1753767040166,-511.52,0.00019726,2]
[375870341,1753767040176,-460.0,0.00019726,2]
[375870343,1753767040185,-1134.56,0.00019726,2]
[375870345,1753767040195,-775.71,0.00019726,2]
[375870347,1753767040205,-460.0,0.00019726,2]
[375870349,1753767040215,-460.0,0.00019726,2]
[375870351,1753767040224,-460.0,0.00019726,2]
[375870353,1753767040233,-460.0,0.00019726,2]
[375870355,1753767040243,-460.0,0.00019726,2]
[375870357,1753767040252,-460.0,0.00019726,2]
[375870359,1753767040261,-460.0,0.00019726,2]
[375870361,1753767040271,-460.0,0.00019726,2]
[375870363,1753767040283,-520.82,0.00019726,2]
[375870365,1753767040292,-460.0,0.00019726,2]
[375870367,1753767040301,-460.0,0.00019726,2]
[375870369,1753767040311,-460.0,0.00019726,2]
[375870371,1753767040320,-460.0,0.00019726,2]
[375870373,1753767040329,-460.0,0.00019726,2]
[375870374,1753767040339,-460.0,0.00019726,2]
[375870376,1753767040349,-460.0,0.00019726,2]
[375870378,1753767040358,-460.0,0.00019726,2]
[375870380,1753767040368,-460.0,0.00019726,2]
[375870382,1753767040378,-460.0,0.00019726,2]
[375870384,1753767040387,-461.48,0.00019726,2]
[375870386,1753767040396,-460.0,0.00019726,2]
[375870388,1753767040406,-460.0,0.00019726,2]
[375870389,1753767040415,-460.0,0.00019726,2]
[375870391,1753767040424,-460.0,0.00019726,2]
[375870393,1753767040434,-648.28,0.00019726,2]
[375870395,1753767040444,-460.0,0.00019726,2]
[375870397,1753767040455,-500.0,0.00019773,2]
[375870399,1753767040465,-502.77103906,0.00019773,2]
[375870401,1753767040474,-500.31792839,0.00019773,2]
[375870403,1753767040485,-502.20877685,0.00019773,2]
[375870405,1753767040495,-500.0,0.00019773,2]
[375870407,1753767040508,-500.0,0.00019773,2]
[375870409,1753767040517,-460.0,0.0002,2]
[375870411,1753767040527,-460.0,0.0002,2]
[375870413,1753767040536,-460.0,0.0002,2]
[375870415,1753767040546,-460.0,0.0002,2]
[375870417,1753767040555,-460.0,0.0002,2]
[375870419,1753767040565,-460.0,0.0002,2]
[375870421,1753767040574,-460.0,0.0002,2]
[375870423,1753767040585,-460.0,0.0002,2]
[375870426,1753767040606,-460.0,0.0002,2]
[375870427,1753767040616,-460.0,0.0002,2]
[375870428,1753767040626,-460.0,0.0002,2]
[375870430,1753767040636,-460.0,0.0002,2]
[375870432,1753767040645,-460.0,0.0002,2]
[375870433,1753767040655,-460.0,0.0002,2]
[375870434,1753767040664,-460.0,0.0002,2]
[375870436,1753767040673,-460.0,0.0002,2]
[375870438,1753767040683,-460.0,0.0002,2]
[375870440,1753767040693,-460.0,0.0002,2]
[375870442,1753767040702,-460.0,0.0002,2]
[375870444,1753767040711,-460.0,0.0002,2]
[375870446,1753767040721,-768.98,0.0002,2]
[375870448,1753767040730,-511.52,0.0002,2]
[375870450,1753767040740,-460.0,0.0002,2]
[375870451,1753767040750,-1134.56,0.0002,2]
[375870453,1753767040760,-775.71,0.0002,2]
[375870455,1753767040769,-460.0,0.0002,2]
[375870457,1753767040778,-460.0,0.0002,2]
[375870458,1753767040789,-460.0,0.0002,2]
[375870459,1753767040799,-460.0,0.0002,2]
[375870460,1753767040809,-460.0,0.0002,2]
[375870461,1753767040818,-460.0,0.0002,2]
[375870462,1753767040828,-460.0,0.0002,2]
[375870463,1753767040838,-460.0,0.0002,2]
[375870464,1753767040848,-520.82,0.0002,2]
[375870465,1753767040858,-460.0,0.0002,2]
[375870466,1753767040869,-460.0,0.0002,2]
[375870467,1753767040880,-460.0,0.0002,2]
[375870471,1753767041095,-460.0,0.0002,2]
[375870473,1753767041106,-460.0,0.0002,2]
[375870475,1753767041115,-460.0,0.0002,2]
[375870477,1753767041125,-460.0,0.0002,2]
[375870479,1753767041140,-460.0,0.0002,2]
[375870481,1753767041150,-460.0,0.0002,2]
[375870483,1753767041159,-460.0,0.0002,2]
[375870485,1753767041169,-461.48,0.0002,2]
[375870487,1753767041179,-460.0,0.0002,2]
[375870488,1753767041189,-155.1,0.0002,2]
[375870490,1753767041199,-460.0,0.0002,2]
[375870492,1753767041208,-460.0,0.0002,2]
[375870494,1753767041218,-648.28,0.0002,2]
[375870496,1753767041227,-460.0,0.0002,2]
[375870498,1753767041237,-1708.35641216,0.00020091,2]
[375870500,1753767041247,-1971.27164444,0.00020173,2]
[375870502,1753767041257,-500.0,0.00020268,2]
[375870504,1753767041266,-500.0,0.00020268,2]
[375870506,1753767041276,-224.13439334,0.00020273,2]
[375870508,1753767041286,-460.0,0.00020273,2]
[375870510,1753767041296,-460.0,0.00020273,2]
[375870512,1753767041306,-253.8097779,0.00020273,2]
[375870514,1753767041316,-460.0,0.00020273,2]
[375870516,1753767041325,-464.5,0.00020273,2]
[375870518,1753767041335,-460.0,0.00020273,2]
[375870520,1753767041344,-460.0,0.00020273,2]
[375870522,1753767041353,-460.0,0.00020273,2]
[375870524,1753767041363,-460.0,0.00020273,2]
[375870526,1753767041372,-216.3,0.00020273,2]
[375870528,1753767041383,-460.0,0.00020273,2]
[375870530,1753767041392,-460.0,0.00020273,2]
[375870532,1753767041402,-460.0,0.00020273,2]
[375870534,1753767041412,-460.0,0.00020273,2]
[375870536,1753767041421,-225.7,0.00020273,2]
[375870538,1753767041430,-460.0,0.00020273,2]
[375870540,1753767041440,-519.81,0.00020273,2]
[375870542,1753767041450,-460.0,0.00020273,2]
[375870544,1753767041459,-768.98,0.00020273,2]
[375870546,1753767041469,-511.52,0.00020273,2]
[375870548,1753767041478,-460.0,0.00020273,2]
[375870550,1753767041488,-1134.56,0.00020273,2]
[375870551,1753767041503,-775.71,0.00020273,2]
[375870553,1753767041512,-460.0,0.00020273,2]
[375870555,1753767041522,-460.0,0.00020273,2]
[375870557,1753767041532,-460.0,0.00020273,2]
[375870559,1753767041543,-460.0,0.00020273,2]
[375870561,1753767041552,-460.0,0.00020273,2]
[375870564,1753767041562,-460.0,0.00020273,2]
[375870566,1753767041572,-460.0,0.00020273,2]
[375870567,1753767041583,-460.0,0.00020273,2]
[375870569,1753767041592,-520.82,0.00020273,2]
[375870571,1753767041601,-460.0,0.00020273,2]
[375870573,1753767041610,-460.0,0.00020273,2]
[375870575,1753767041621,-460.0,0.00020273,2]
[375870578,1753767041631,-460.0,0.00020273,2]
[375870579,1753767041640,-460.0,0.00020273,2]
[375870581,1753767041650,-460.0,0.00020273,2]
[375870583,1753767041660,-460.0,0.00020273,2]
[375870585,1753767041671,-460.0,0.00020273,2]
[375870587,1753767041681,-460.0,0.00020273,2]
[375870589,1753767041690,-460.0,0.00020273,2]
[375870591,1753767041700,-461.48,0.00020273,2]
[375870593,1753767041710,-460.0,0.00020273,2]
[375870595,1753767041719,-460.0,0.00020273,2]
[375870597,1753767041729,-525.6,0.00020273,2]
[375870599,1753767041739,-648.28,0.00020273,2]
[375870601,1753767041749,-460.0,0.00020273,2]
[375870603,1753767041758,-500.0,0.00020321,2]
[375870605,1753767041770,-12637.12721421,0.00020427,2]
[375870607,1753767041779,-214.91980558,0.00020427,2]
[375870609,1753767041788,-160.0,0.00020427,2]
[375870611,1753767041798,-454.69923987,0.00020427,2]
[375870613,1753767041808,-902.14728545,0.00020447,2]
[375870615,1753767041817,-460.0,0.00020547,2]
[375870616,1753767041827,-460.0,0.00020547,2]
[375870617,1753767041837,-460.0,0.00020547,2]
[375870618,1753767041846,-460.0,0.00020547,2]
[375870619,1753767041856,-460.0,0.00020547,2]
[375870620,1753767041865,-460.0,0.00020547,2]
[375870621,1753767041875,-460.0,0.00020547,2]
[375870622,1753767041885,-460.0,0.00020547,2]
[375870623,1753767041894,-460.0,0.00020547,2]
[375870624,1753767041903,-460.0,0.00020547,2]
[375870625,1753767041913,-460.0,0.00020547,2]
[375870626,1753767041922,-460.0,0.00020547,2]
[375870627,1753767041931,-212.31,0.00020547,2]
[375870628,1753767041940,-768.98,0.00020547,2]
[375870629,1753767041951,-511.52,0.00020547,2]
[375870630,1753767041960,-460.0,0.00020547,2]
[375870631,1753767041970,-1134.56,0.00020547,2]
[375870632,1753767041980,-775.71,0.00020547,2]
[375870633,1753767041990,-256.54,0.00020547,2]
[375870634,1753767041999,-460.0,0.00020547,2]
[375870635,1753767042009,-460.0,0.00020547,2]
[375870636,1753767042018,-460.0,0.00020547,2]
[375870637,1753767042027,-460.0,0.00020547,2]
[375870638,1753767042037,-155.69,0.00020547,2]
[375870639,1753767042047,-460.0,0.00020547,2]
[375870640,1753767042056,-460.0,0.00020547,2]
[375870641,1753767042066,-520.82,0.00020547,2]
[375870642,1753767042077,-460.0,0.00020547,2]
[375870643,1753767042086,-460.0,0.00020547,2]
[375870644,1753767042095,-460.0,0.00020547,2]
[375870645,1753767042105,-460.0,0.00020547,2]
[375870646,1753767042115,-460.0,0.00020547,2]
[375870647,1753767042125,-460.0,0.00020547,2]
[375870649,1753767042135,-460.0,0.00020547,2]
[375870651,1753767042145,-409.14,0.00020547,2]
[375870653,1753767042154,-460.0,0.00020547,2]
[375870655,1753767042164,-458.86,0.00020547,2]
[375870657,1753767042174,-460.0,0.00020547,2]
[375870659,1753767042183,-461.48,0.00020547,2]
[375870661,1753767042193,-460.0,0.00020547,2]
[375870663,1753767042202,-648.28,0.00020547,2]
[375870665,1753767042212,-460.0,0.00020547,2]
[375870667,1753767042221,-254.0,0.00020674,2]
[375870669,1753767042230,-1200.0,0.00020675,2]
[375870671,1753767042240,-1012.0,0.00020774,2]
[375870673,1753767042249,-460.0,0.00020821,2]
[375870675,1753767042259,-469.65,0.00020821,2]
[375870676,1753767042269,-460.0,0.00020821,2]
[375870678,1753767042278,-460.0,0.00020821,2]
[375870680,1753767042288,-460.0,0.00020821,2]
[375870682,1753767042298,-460.0,0.00020821,2]
[375870685,1753767042308,-460.0,0.00020821,2]
[375870686,1753767042318,-529.72,0.00020821,2]
[375870688,1753767042327,-460.0,0.00020821,2]
[375870690,1753767042337,-460.0,0.00020821,2]
[375870692,1753767042347,-460.0,0.00020821,2]
[375870694,1753767042356,-460.0,0.00020821,2]
[375870696,1753767042365,-768.98,0.00020821,2]
[375870698,1753767042375,-511.52,0.00020821,2]
[375870700,1753767042386,-460.0,0.00020821,2]
[375870702,1753767042396,-1134.56,0.00020821,2]
[375870704,1753767042405,-775.71,0.00020821,2]
[375870706,1753767042415,-172.6,0.00020821,2]
[375870708,1753767042425,-460.0,0.00020821,2]
[375870710,1753767042434,-460.0,0.00020821,2]
[375870712,1753767042444,-460.0,0.00020821,2]
[375870714,1753767042453,-162.6,0.00020821,2]
[375870716,1753767042463,-460.0,0.00020821,2]
[375870718,1753767042472,-520.82,0.00020821,2]
[375870720,1753767042481,-460.0,0.00020821,2]
[375870722,1753767042491,-460.0,0.00020821,2]
[375870724,1753767042502,-460.0,0.00020821,2]
[375870726,1753767042512,-460.0,0.00020821,2]
[375870728,1753767042521,-246.95,0.00020821,2]
[375870730,1753767042530,-460.0,0.00020821,2]
[375870732,1753767042541,-460.0,0.00020821,2]
[375870734,1753767042550,-597.76,0.00020821,2]
[375870736,1753767042560,-461.48,0.00020821,2]
[375870738,1753767042570,-460.0,0.00020821,2]
[375870739,1753767042581,-648.28,0.00020821,2]
[375870741,1753767042590,-460.0,0.00020821,2]
[375870743,1753767042601,-156.566386,0.00020972,3]
[375870744,1753767042610,-2000.0,0.00020978,2]
[375870745,1753767042620,-3000.0,0.00020996,2]
[375870746,1753767042631,-278.0,0.00020999,2]
[375870747,1753767042640,-1000.0,0.00021049,3]
[375870748,1753767042650,-460.0,0.00021095,2]
[375870749,1753767042660,-460.0,0.00021095,2]
[375870750,1753767042669,-460.0,0.00021095,2]
[375870751,1753767042680,-460.0,0.00021095,2]
[375870752,1753767042689,-460.0,0.00021095,2]
[375870753,1753767042699,-460.0,0.00021095,2]
[375870754,1753767042708,-460.0,0.00021095,2]
[375870755,1753767042718,-460.0,0.00021095,2]
[375870756,1753767042727,-460.0,0.00021095,2]
[375870758,1753767042737,-579.12,0.00021095,2]
[375870760,1753767042747,-768.98,0.00021095,2]
[375870762,1753767042756,-511.52,0.00021095,2]
[375870764,1753767042766,-494.3,0.00021095,2]
[375870766,1753767042775,-1134.56,0.00021095,2]
[375870768,1753767042784,-775.71,0.00021095,2]
[375870770,1753767042794,-460.0,0.00021095,2]
[375870772,1753767042804,-357.4,0.00021095,2]
[375870774,1753767042813,-460.0,0.00021095,2]
[375870776,1753767042823,-460.0,0.00021095,2]
[375870778,1753767042833,-520.82,0.00021095,2]
[375870780,1753767042844,-460.0,0.00021095,2]
[375870782,1753767042854,-460.0,0.00021095,2]
[375870785,1753767042863,-460.0,0.00021095,2]
[375870788,1753767042873,-460.0,0.00021095,2]
[375870791,1753767042884,-460.0,0.00021095,2]
[375870793,1753767042895,-460.0,0.00021095,2]
[375870795,1753767042904,-461.48,0.00021095,2]
[375870797,1753767042915,-460.0,0.00021095,2]
[375870799,1753767042924,-648.28,0.00021095,2]
[375870801,1753767042933,-349.28,0.00021095,2]
[375870803,1753767042943,-3000.0,0.00021099,3]
[375870805,1753767042952,-3022.7,0.00021181,3]
[375870807,1753767042962,-320.35077113,0.00021215,2]
[375870809,1753767042971,-4000.0,0.00021219,3]
[375870811,1753767042981,-214.91980558,0.00021219,3]
[375870813,1753767042991,-12637.12721421,0.00021219,3]
[375870815,1753767043000,-160.0,0.00021219,3]
[375870817,1753767043010,-200.0,0.00021246,15]
[375870818,1753767043019,-200.0,0.00021246,15]
[375870820,1753767043028,-200.0,0.00021246,15]
[375870822,1753767043038,-200.0,0.00021246,15]
[375870824,1753767043048,-320.0,0.00021246,15]
[375870826,1753767043059,-3000.0,0.00021288,3]
[375870828,1753767043068,-4000.0,0.00021341,3]
[375870830,1753767043078,-460.0,0.00021369,2]
[375870832,1753767043087,-460.0,0.00021369,2]
[375870834,1753767043097,-460.0,0.00021369,2]
[375870836,1753767043106,-460.0,0.00021369,2]
[375870838,1753767043116,-460.0,0.00021369,2]
[375870840,1753767043126,-460.0,0.00021369,2]
[375870842,1753767043137,-460.0,0.00021369,2]
[375870843,1753767043146,-460.0,0.00021369,2]
[375870846,1753767043156,-460.0,0.00021369,2]
[375870848,1753767043166,-768.98,0.00021369,2]
[375870850,1753767043176,-511.52,0.00021369,2]
[375870851,1753767043186,-1134.56,0.00021369,2]
[375870853,1753767043196,-775.71,0.00021369,2]
[375870855,1753767043206,-460.0,0.00021369,2]
[375870857,1753767043216,-460.0,0.00021369,2]
[375870859,1753767043226,-460.0,0.00021369,2]
[375870861,1753767043236,-520.82,0.00021369,2]
[375870863,1753767043245,-460.0,0.00021369,2]
[375870865,1753767043254,-460.0,0.00021369,2]
[375870866,1753767043263,-460.0,0.00021369,2]
[375870867,1753767043273,-460.0,0.00021369,2]
[375870868,1753767043283,-264.36,0.00021369,2]
[375870869,1753767043292,-460.0,0.00021369,2]
[375870870,1753767043301,-461.48,0.00021369,2]
[375870871,1753767043311,-460.0,0.00021369,2]
[375870872,1753767043321,-648.28,0.00021369,2]
[375870873,1753767043331,-4000.0,0.00021426,3]
[375870875,1753767043340,-997.78256394,0.000215,2]
[375870877,1753767043349,-315.5,0.0002158,4]
[375870879,1753767043359,-465.152,0.00021637,2]
[375870881,1753767043368,-460.0,0.00021643,2]
[375870883,1753767043378,-460.0,0.00021643,2]
[375870885,1753767043387,-213.54,0.00021643,2]
[375870887,1753767043397,-460.0,0.00021643,2]
[375870889,1753767043407,-460.0,0.00021643,2]
[375870890,1753767043416,-460.0,0.00021643,2]
[375870892,1753767043426,-583.14697094,0.00021643,2]
[375870894,1753767043435,-460.0,0.00021643,2]
[375870896,1753767043445,-460.0,0.00021643,2]
[375870898,1753767043455,-768.98,0.00021643,2]
[375870900,1753767043464,-511.52,0.00021643,2]
[375870902,1753767043473,-1134.56,0.00021643,2]
[375870904,1753767043483,-775.71,0.00021643,2]
[375870906,1753767043492,-460.0,0.00021643,2]
[375870908,1753767043504,-278.08,0.00021643,2]
[375870910,1753767043514,-460.0,0.00021643,2]
[375870912,1753767043524,-520.82,0.00021643,2]
[375870914,1753767043535,-460.0,0.00021643,2]
[375870916,1753767043545,-460.0,0.00021643,2]
[375870920,1753767043564,-593.91,0.00021643,2]
[375870922,1753767043579,-460.0,0.00021643,2]
[375870924,1753767043590,-460.0,0.00021643,2]
[375870926,1753767043599,-461.48,0.00021643,2]
[375870928,1753767043609,-460.0,0.00021643,2]
[375870930,1753767043620,-648.28,0.00021643,2]
[375870932,1753767043631,-902.14728541,0.00021907,2]
[375870934,1753767043641,-267.17380269,0.00021917,2]
[375870936,1753767043651,-460.0,0.00021917,2]
[375870938,1753767043661,-460.0,0.00021917,2]
[375870940,1753767043672,-460.0,0.00021917,2]
[375870942,1753767043682,-768.98,0.00021917,2]
[375870944,1753767043692,-511.52,0.00021917,2]
[375870946,1753767043701,-1134.56,0.00021917,2]
[375870948,1753767043711,-775.71,0.00021917,2]
[375870950,1753767043720,-460.0,0.00021917,2]
[375870952,1753767043730,-460.0,0.00021917,2]
[375870955,1753767043740,-520.82,0.00021917,2]
[375870957,1753767043750,-460.0,0.00021917,2]
[375870959,1753767043759,-287.74,0.00021917,2]
[375870961,1753767043769,-460.0,0.00021917,2]
[375870963,1753767043779,-500.0,0.00021917,2]
[375870965,1753767043789,-507.65964383,0.00021917,2]
[375870967,1753767043799,-460.0,0.00021917,2]
[375870969,1753767043809,-461.48,0.00021917,2]
[375870971,1753767043818,-460.0,0.00021917,2]
[375870973,1753767043829,-648.28,0.00021917,2]
[375870975,1753767043838,-494.33,0.00022,7]
[375870977,1753767043849,-3351.05,0.00022,7]
[375870979,1753767043860,-1042.39,0.00022,7]
[375870981,1753767043870,-315.5,0.00022015,4]
[375870983,1753767043881,-162.32,0.00022191,2]
[375870985,1753767043890,-460.0,0.00022191,2]
[375870987,1753767043900,-460.0,0.00022191,2]
[375870989,1753767043910,-768.98,0.00022191,2]
[375870991,1753767043920,-511.52,0.00022191,2]
[375870993,1753767043932,-1134.56,0.00022191,2]
[375870995,1753767043942,-775.71,0.00022191,2]
[375870997,1753767043952,-460.0,0.00022191,2]
[375870999,1753767043962,-588.46,0.00022191,2]
[375871002,1753767043972,-520.82,0.00022191,2]
[375871004,1753767043982,-460.0,0.00022191,2]
[375871006,1753767043991,-460.0,0.00022191,2]
[375871008,1753767044001,-460.0,0.00022191,2]
[375871010,1753767044011,-461.48,0.00022191,2]
[375871012,1753767044020,-460.0,0.00022191,2]
[375871014,1753767044031,-648.28,0.00022191,2]
[375871016,1753767044040,-969.0,0.00022252,2]
[375871018,1753767044051,-407.0,0.00022252,2]
[375871020,1753767044060,-425.682,0.00022252,2]
[375871022,1753767044070,-154.311643,0.00022413,3]
[375871024,1753767044079,-315.5,0.0002245,5]
[375871026,1753767044090,-291.2,0.00022465,2]
[375871028,1753767044099,-460.0,0.00022465,2]
[375871030,1753767044109,-768.98,0.00022465,2]
[375871032,1753767044119,-511.52,0.00022465,2]
[375871034,1753767044129,-1134.56,0.00022465,2]
[375871036,1753767044139,-775.71,0.00022465,2]
[375871038,1753767044148,-460.0,0.00022465,2]